[Event "Late-Titled-Tuesday-Blitz-November-28-2023"]
[Site "Chess.com"]
[Date "2023.11.28"]
[Round "8"]
[White "FairChess_on_YouTube"]
[Black "AryanTari"]
[Result "1-0"]
[WhiteElo "3091"]
[BlackElo "2978"]
[TimeControl "180+1"]
[EndTime "15:25:33 PST"]
[Termination "FairChess_on_YouTube won by checkmate"]

1. d4 {[%clk 0:03:00.9]} 1... d5 {[%clk 0:02:50.1]} 2. c4 {[%clk 0:03:00.8]}
2... e6 {[%clk 0:02:48.8]} 3. Nf3 {[%clk 0:03:00.7]} 3... Nf6 {[%clk 0:02:48.3]}
4. Bg5 {[%clk 0:03:00.7]} 4... dxc4 {[%clk 0:02:48]} 5. e4 {[%clk 0:03:00.5]}
5... c5 {[%clk 0:02:36]} 6. Nc3 {[%clk 0:02:59.2]} 6... cxd4 {[%clk 0:02:34.3]}
7. Qxd4 {[%clk 0:03:00.1]} 7... Qxd4 {[%clk 0:02:31.6]} 8. Nxd4 {[%clk 0:03:01]}
8... a6 {[%clk 0:02:29.5]} 9. Bxc4 {[%clk 0:03:00.8]} 9... b5 {[%clk 0:02:24]}
10. Be2 {[%clk 0:03:00.9]} 10... Nbd7 {[%clk 0:02:20.7]} 11. f3 {[%clk
0:03:00.2]} 11... Bb7 {[%clk 0:02:19.1]} 12. Nb3 {[%clk 0:02:59.4]} 12... Rc8
{[%clk 0:02:13.8]} 13. Kf2 {[%clk 0:02:50.1]} 13... Bb4 {[%clk 0:02:07.4]} 14.
a4 {[%clk 0:02:39.8]} 14... Nc5 {[%clk 0:02:07.1]} 15. Nxc5 {[%clk 0:02:32.2]}
15... Bxc5+ {[%clk 0:02:07.2]} 16. Be3 {[%clk 0:02:31.8]} 16... b4 {[%clk
0:02:04.6]} 17. Na2 {[%clk 0:02:29]} 17... a5 {[%clk 0:02:00.7]} 18. Nc1 {[%clk
0:02:16.1]} 18... Bxe3+ {[%clk 0:01:55.3]} 19. Kxe3 {[%clk 0:02:17]} 19... Ke7
{[%clk 0:01:48.2]} 20. Nb3 {[%clk 0:02:15.7]} 20... Ra8 {[%clk 0:01:48.8]} 21.
Rhc1 {[%clk 0:02:13]} 21... Rhc8 {[%clk 0:01:48.3]} 22. Bb5 {[%clk 0:02:08.4]}
22... Ne8 {[%clk 0:01:37.6]} 23. Rxc8 {[%clk 0:01:35.5]} 23... Bxc8 {[%clk
0:01:38.5]} 24. Rc1 {[%clk 0:01:35.5]} 24... Nd6 {[%clk 0:01:38.8]} 25. Bc6
{[%clk 0:01:34.8]} 25... Ra7 {[%clk 0:01:35.4]} 26. Rc5 {[%clk 0:01:32.1]} 26...
Ba6 {[%clk 0:01:29.6]} 27. Nxa5 {[%clk 0:01:16.1]} 27... Rc7 {[%clk 0:01:00.9]}
28. Kd4 {[%clk 0:01:12]} 28... f6 {[%clk 0:01:00.2]} 29. Bb5 {[%clk 0:00:55.3]}
29... e5+ {[%clk 0:00:31]} 30. Kd5 {[%clk 0:00:54.7]} 30... Bb7+ {[%clk
0:00:24.2]} 31. Nxb7 {[%clk 0:00:53.7]} 31... Rxb7 {[%clk 0:00:25.1]} 32. Bd3
{[%clk 0:00:39.6]} 32... b3 {[%clk 0:00:21.1]} 33. a5 {[%clk 0:00:37.3]} 33...
Nf7 {[%clk 0:00:08.2]} 34. a6 {[%clk 0:00:33.2]} 34... Rd7+ {[%clk 0:00:07.9]}
35. Kc4 {[%clk 0:00:33.8]} 35... Nd8 {[%clk 0:00:07]} 36. Kc3 {[%clk 0:00:29.5]}
36... Ne6 {[%clk 0:00:06.5]} 37. Ra5 {[%clk 0:00:29.1]} 37... Ra7 {[%clk
0:00:03.5]} 38. Kxb3 {[%clk 0:00:28.1]} 38... Nd4+ {[%clk 0:00:03.9]} 39. Kc3
{[%clk 0:00:27.9]} 39... Rc7+ {[%clk 0:00:02.1]} 40. Bc4 {[%clk 0:00:24.6]}
40... Nc6 {[%clk 0:00:02.7]} 41. Rc5 {[%clk 0:00:22.2]} 41... Kd6 {[%clk
0:00:03.3]} 42. b4 {[%clk 0:00:22]} 42... Ra7 {[%clk 0:00:03.7]} 43. Bb5 {[%clk
0:00:18.7]} 43... Nd4 {[%clk 0:00:03.4]} 44. Kc4 {[%clk 0:00:18.1]} 44... Ra8
{[%clk 0:00:02.6]} 45. Rd5+ {[%clk 0:00:17.9]} 45... Kc7 {[%clk 0:00:02.1]} 46.
Rd7+ {[%clk 0:00:18.1]} 46... Kb6 {[%clk 0:00:02]} 47. Rb7# {[%clk 0:00:18.2]}
1-0

[Event "Late-Titled-Tuesday-Blitz-November-28-2023"]
[Site "Chess.com"]
[Date "2023.11.28"]
[Round "8"]
[White "Felix-Rose"]
[Black "cthake"]
[Result "1-0"]
[WhiteElo "2329"]
[BlackElo "1929"]
[TimeControl "180+1"]
[EndTime "15:25:38 PST"]
[Termination "Felix-Rose won on time"]

1. e4 {[%clk 0:03:00.3]} 1... e6 {[%clk 0:02:59.3]} 2. d4 {[%clk 0:03:00.3]}
2... d5 {[%clk 0:02:59.3]} 3. Nc3 {[%clk 0:03:00.4]} 3... Bb4 {[%clk 0:02:58.8]}
4. e5 {[%clk 0:02:58.5]} 4... Qd7 {[%clk 0:02:58.2]} 5. Qg4 {[%clk 0:02:53.1]}
5... f5 {[%clk 0:02:58]} 6. Qg3 {[%clk 0:02:51.3]} 6... b6 {[%clk 0:02:54.5]} 7.
a3 {[%clk 0:02:50.2]} 7... Bxc3+ {[%clk 0:02:52.8]} 8. Qxc3 {[%clk 0:02:50.3]}
8... Ba6 {[%clk 0:02:52.1]} 9. Bxa6 {[%clk 0:02:49]} 9... Nxa6 {[%clk
0:02:49.1]} 10. b4 {[%clk 0:02:47.3]} 10... c6 {[%clk 0:02:34.2]} 11. h4 {[%clk
0:02:42.6]} 11... Ne7 {[%clk 0:02:32.8]} 12. h5 {[%clk 0:02:42.5]} 12... O-O
{[%clk 0:02:22.6]} 13. Rh3 {[%clk 0:02:33.7]} 13... f4 {[%clk 0:02:04.6]} 14.
Rf3 {[%clk 0:02:29.2]} 14... g5 {[%clk 0:02:00.6]} 15. hxg6 {[%clk 0:02:24.2]}
15... Nxg6 {[%clk 0:02:00.4]} 16. Kf1 {[%clk 0:02:12.5]} 16... Rf7 {[%clk
0:01:57.8]} 17. Nh3 {[%clk 0:02:12.3]} 17... Raf8 {[%clk 0:01:54.8]} 18. Qd3
{[%clk 0:02:06.9]} 18... Nc7 {[%clk 0:01:51]} 19. a4 {[%clk 0:02:05.7]} 19...
Qe7 {[%clk 0:01:42.8]} 20. Bd2 {[%clk 0:01:48.7]} 20... Qh4 {[%clk 0:01:28.9]}
21. Ng1 {[%clk 0:01:47]} 21... Qg4 {[%clk 0:01:22.8]} 22. Rh3 {[%clk 0:01:37.8]}
22... Nh4 {[%clk 0:01:17.5]} 23. Rh2 {[%clk 0:01:33.8]} 23... Nf5 {[%clk
0:01:04.4]} 24. Nf3 {[%clk 0:01:23.5]} 24... h5 {[%clk 0:00:56.7]} 25. c4 {[%clk
0:01:22.4]} 25... Ng3+ {[%clk 0:00:49.6]} 26. Kg1 {[%clk 0:01:01.8]} 26... Nf5
{[%clk 0:00:47.5]} 27. a5 {[%clk 0:00:52]} 27... h4 {[%clk 0:00:43.8]} 28. axb6
{[%clk 0:00:48.9]} 28... axb6 {[%clk 0:00:44.1]} 29. Ra7 {[%clk 0:00:44.4]}
29... Rg7 {[%clk 0:00:39.6]} 30. cxd5 {[%clk 0:00:43.1]} 30... cxd5 {[%clk
0:00:36]} 31. Qc2 {[%clk 0:00:32.7]} 31... h3 {[%clk 0:00:35.7]} 32. Rxc7 {[%clk
0:00:32]} 32... Rxc7 {[%clk 0:00:20.6]} 33. Qxc7 {[%clk 0:00:31.4]} 33... Ra8
{[%clk 0:00:20.8]} 34. Rxh3 {[%clk 0:00:27.1]} 34... Ra1+ {[%clk 0:00:20.4]} 35.
Kh2 {[%clk 0:00:21.4]} 35... Qg6 {[%clk 0:00:19.3]} 36. Bxf4 {[%clk 0:00:16.8]}
36... Ng7 {[%clk 0:00:14.2]} 37. Qd8+ {[%clk 0:00:16.1]} 37... Qe8 {[%clk
0:00:12]} 38. Qh4 {[%clk 0:00:13.7]} 38... Qg6 {[%clk 0:00:07.9]} 39. Qh8+
{[%clk 0:00:13.3]} 39... Kf7 {[%clk 0:00:08.1]} 40. Ng5+ {[%clk 0:00:14]} 40...
Ke7 {[%clk 0:00:06.7]} 41. Qh7 {[%clk 0:00:10.8]} 1-0

[Event "Late-Titled-Tuesday-Blitz-November-28-2023"]
[Site "Chess.com"]
[Date "2023.11.28"]
[Round "8"]
[White "Aradhya2000"]
[Black "TigrVShlyape"]
[Result "0-1"]
[WhiteElo "2737"]
[BlackElo "2976"]
[TimeControl "180+1"]
[EndTime "15:25:40 PST"]
[Termination "TigrVShlyape won by checkmate"]

1. d4 {[%clk 0:03:00.9]} 1... f5 {[%clk 0:02:54.7]} 2. Nf3 {[%clk 0:03:00.6]}
2... Nf6 {[%clk 0:02:50.6]} 3. c4 {[%clk 0:03:00.6]} 3... e6 {[%clk 0:02:50.5]}
4. Nc3 {[%clk 0:03:00.1]} 4... Bb4 {[%clk 0:02:49.8]} 5. g3 {[%clk 0:02:59.8]}
5... Bxc3+ {[%clk 0:02:49.4]} 6. bxc3 {[%clk 0:02:59.7]} 6... b6 {[%clk
0:02:50]} 7. d5 {[%clk 0:02:59]} 7... Bb7 {[%clk 0:02:47.4]} 8. dxe6 {[%clk
0:02:59.3]} 8... dxe6 {[%clk 0:02:47]} 9. Qxd8+ {[%clk 0:02:59.6]} 9... Kxd8
{[%clk 0:02:47.2]} 10. Bg2 {[%clk 0:02:59.6]} 10... Ke7 {[%clk 0:02:44.7]} 11.
Bf4 {[%clk 0:02:57.8]} 11... Na6 {[%clk 0:02:24.8]} 12. O-O {[%clk 0:02:57.7]}
12... Rhd8 {[%clk 0:02:08.1]} 13. a4 {[%clk 0:02:56.1]} 13... h6 {[%clk
0:02:04.8]} 14. a5 {[%clk 0:02:48.7]} 14... g5 {[%clk 0:02:03.7]} 15. Be3 {[%clk
0:02:35.6]} 15... Ng4 {[%clk 0:01:56.9]} 16. Bd4 {[%clk 0:02:31.2]} 16... c5
{[%clk 0:01:31.1]} 17. axb6 {[%clk 0:02:26.5]} 17... axb6 {[%clk 0:01:23.3]} 18.
Be3 {[%clk 0:02:08.7]} 18... Nxe3 {[%clk 0:01:22.4]} 19. fxe3 {[%clk 0:02:09.1]}
19... Nc7 {[%clk 0:01:12.7]} 20. Ne5 {[%clk 0:01:55.3]} 20... Bxg2 {[%clk
0:01:11.7]} 21. Kxg2 {[%clk 0:01:56.2]} 21... Kf6 {[%clk 0:01:05.7]} 22. Nd3
{[%clk 0:01:56.3]} 22... Rxa1 {[%clk 0:01:04]} 23. Rxa1 {[%clk 0:01:55.9]} 23...
Ra8 {[%clk 0:01:04.6]} 24. Rb1 {[%clk 0:01:51.7]} 24... Ra6 {[%clk 0:01:04.7]}
25. Kf3 {[%clk 0:01:51.8]} 25... Ne8 {[%clk 0:01:03.8]} 26. h4 {[%clk
0:01:26.7]} 26... Nd6 {[%clk 0:00:55.8]} 27. hxg5+ {[%clk 0:01:26.5]} 27... hxg5
{[%clk 0:00:55.2]} 28. Rh1 {[%clk 0:01:26.2]} 28... Nxc4 {[%clk 0:00:44.3]} 29.
Rh6+ {[%clk 0:01:26.1]} 29... Ke7 {[%clk 0:00:44.5]} 30. g4 {[%clk 0:01:17.6]}
30... Nd2+ {[%clk 0:00:44]} 31. Kg2 {[%clk 0:01:08.9]} 31... Ra3 {[%clk
0:00:41.9]} 32. gxf5 {[%clk 0:01:08.3]} 32... exf5 {[%clk 0:00:41.7]} 33. Rxb6
{[%clk 0:01:03.1]} 33... Rxc3 {[%clk 0:00:41.1]} 34. Rb7+ {[%clk 0:00:49.3]}
34... Kd6 {[%clk 0:00:38.7]} 35. Rb6+ {[%clk 0:00:49.7]} 35... Kd5 {[%clk
0:00:37.8]} 36. Rf6 {[%clk 0:00:47.6]} 36... c4 {[%clk 0:00:20.8]} 37. Rxf5+
{[%clk 0:00:47.1]} 37... Ke6 {[%clk 0:00:20.8]} 38. Rxg5 {[%clk 0:00:47.2]}
38... cxd3 {[%clk 0:00:20.6]} 39. exd3 {[%clk 0:00:46.8]} 39... Rxd3 {[%clk
0:00:21.1]} 40. Ra5 {[%clk 0:00:42.5]} 40... Rxe3 {[%clk 0:00:20.6]} 41. Kf2
{[%clk 0:00:42.5]} 41... Rh3 {[%clk 0:00:19.3]} 42. Ke2 {[%clk 0:00:41.1]} 42...
Ne4 {[%clk 0:00:18.9]} 43. Kf1 {[%clk 0:00:37.4]} 43... Rh2 {[%clk 0:00:18.9]}
44. Kg1 {[%clk 0:00:37.5]} 44... Rb2 {[%clk 0:00:18.3]} 45. Rh5 {[%clk
0:00:35.6]} 45... Kf6 {[%clk 0:00:18.2]} 46. Ra5 {[%clk 0:00:35.3]} 46... Kg6
{[%clk 0:00:17.4]} 47. Rd5 {[%clk 0:00:34.8]} 47... Ng5 {[%clk 0:00:16.2]} 48.
Rd3 {[%clk 0:00:21.8]} 48... Kf5 {[%clk 0:00:15.3]} 49. Rg3 {[%clk 0:00:22.4]}
49... Kf4 {[%clk 0:00:14.6]} 50. Rg2 {[%clk 0:00:22.8]} 50... Nh3+ {[%clk
0:00:12.4]} 51. Kh2 {[%clk 0:00:22.9]} 51... Nf2 {[%clk 0:00:12.3]} 52. Kg1
{[%clk 0:00:19.1]} 52... Kf3 {[%clk 0:00:12.4]} 53. Rg8 {[%clk 0:00:18.3]} 53...
Rb1+ {[%clk 0:00:12.2]} 54. Kh2 {[%clk 0:00:17.5]} 54... Rh1# {[%clk 0:00:12.8]}
0-1

[Event "Late-Titled-Tuesday-Blitz-November-28-2023"]
[Site "Chess.com"]
[Date "2023.11.28"]
[Round "8"]
[White "krzyzan94"]
[Black "BogdanDeac"]
[Result "0-1"]
[WhiteElo "2738"]
[BlackElo "2994"]
[TimeControl "180+1"]
[EndTime "15:25:41 PST"]
[Termination "BogdanDeac won by resignation"]

1. e4 {[%clk 0:02:53.8]} 1... e5 {[%clk 0:02:59.9]} 2. Nf3 {[%clk 0:02:52.8]}
2... Nc6 {[%clk 0:03:00.5]} 3. Bb5 {[%clk 0:02:51]} 3... a6 {[%clk 0:03:01]} 4.
Ba4 {[%clk 0:02:51.3]} 4... Nf6 {[%clk 0:03:01.5]} 5. Nc3 {[%clk 0:02:50.7]}
5... Bc5 {[%clk 0:02:59.3]} 6. O-O {[%clk 0:02:44.1]} 6... b5 {[%clk 0:02:55.4]}
7. Bb3 {[%clk 0:02:43.8]} 7... O-O {[%clk 0:02:55.3]} 8. d3 {[%clk 0:02:39.1]}
8... h6 {[%clk 0:02:47.2]} 9. a4 {[%clk 0:02:36.9]} 9... Rb8 {[%clk 0:02:46.4]}
10. axb5 {[%clk 0:02:36.3]} 10... axb5 {[%clk 0:02:47.1]} 11. Nd5 {[%clk
0:02:34.4]} 11... d6 {[%clk 0:02:45.5]} 12. c3 {[%clk 0:02:34]} 12... Nxd5
{[%clk 0:02:37.5]} 13. Bxd5 {[%clk 0:02:31.5]} 13... Ne7 {[%clk 0:02:37.3]} 14.
Bb3 {[%clk 0:02:27.7]} 14... Ng6 {[%clk 0:02:29.4]} 15. d4 {[%clk 0:02:24.4]}
15... Bb6 {[%clk 0:02:26.5]} 16. Be3 {[%clk 0:02:18.4]} 16... Qf6 {[%clk
0:02:20]} 17. h3 {[%clk 0:01:24.6]} 17... Re8 {[%clk 0:02:18]} 18. Re1 {[%clk
0:00:54.2]} 18... Bb7 {[%clk 0:02:13.8]} 19. dxe5 {[%clk 0:00:40.3]} 19... dxe5
{[%clk 0:02:09.8]} 20. Bxb6 {[%clk 0:00:39.6]} 20... Qxb6 {[%clk 0:02:09.1]} 21.
Qd7 {[%clk 0:00:35]} 21... Re7 {[%clk 0:02:01.9]} 22. Qf5 {[%clk 0:00:18.1]}
22... Bc8 {[%clk 0:01:53.6]} 23. Qh5 {[%clk 0:00:17.9]} 23... Qf6 {[%clk
0:01:37.4]} 24. Rad1 {[%clk 0:00:16]} 24... Nf4 {[%clk 0:01:24.3]} 25. Rd8+
{[%clk 0:00:13.6]} 25... Kh7 {[%clk 0:01:24.5]} 26. Qh4 {[%clk 0:00:12.9]} 26...
g5 {[%clk 0:01:11.9]} 27. Qg3 {[%clk 0:00:13.1]} 27... c5 {[%clk 0:00:18.9]} 28.
Bd5 {[%clk 0:00:11.9]} 28... Qb6 {[%clk 0:00:11.2]} 29. Rf8 {[%clk 0:00:10.1]}
29... Kg7 {[%clk 0:00:09.1]} 30. Rxc8 {[%clk 0:00:06.6]} 30... Rxc8 {[%clk
0:00:08.6]} 31. h4 {[%clk 0:00:06.8]} 31... f6 {[%clk 0:00:07]} 32. Nh2 {[%clk
0:00:07]} 32... Rd8 {[%clk 0:00:06.7]} 33. Ng4 {[%clk 0:00:05.2]} 33... c4
{[%clk 0:00:05.8]} 34. Ne3 {[%clk 0:00:05.3]} 34... Kh8 {[%clk 0:00:05.9]} 35.
Nf5 {[%clk 0:00:05.8]} 35... Rh7 {[%clk 0:00:06]} 36. Qf3 {[%clk 0:00:04]} 36...
h5 {[%clk 0:00:05.1]} 37. hxg5 {[%clk 0:00:03.8]} 37... fxg5 {[%clk 0:00:05.5]}
38. g3 {[%clk 0:00:04.4]} 38... g4 {[%clk 0:00:05.4]} 39. Qd1 {[%clk 0:00:03.4]}
39... Nh3+ {[%clk 0:00:05.2]} 40. Kg2 {[%clk 0:00:02.2]} 40... Qxf2+ {[%clk
0:00:05.4]} 41. Kh1 {[%clk 0:00:02.6]} 41... Qxf5 {[%clk 0:00:05.7]} 42. exf5
{[%clk 0:00:02.3]} 42... Nf2+ {[%clk 0:00:06.1]} 43. Kg2 {[%clk 0:00:02.3]}
43... Nxd1 {[%clk 0:00:07]} 44. Rxd1 {[%clk 0:00:02]} 44... Rhd7 {[%clk
0:00:07.3]} 45. Re1 {[%clk 0:00:01.7]} 45... Rxd5 {[%clk 0:00:07.4]} 46. Rh1
{[%clk 0:00:01.9]} 46... Rd2+ {[%clk 0:00:07.8]} 0-1

[Event "Late-Titled-Tuesday-Blitz-November-28-2023"]
[Site "Chess.com"]
[Date "2023.11.28"]
[Round "8"]
[White "NikolasTheiss"]
[Black "KNVB"]
[Result "0-1"]
[WhiteElo "2532"]
[BlackElo "2676"]
[TimeControl "180+1"]
[EndTime "15:25:46 PST"]
[Termination "KNVB won by resignation"]

1. e4 {[%clk 0:03:00.9]} 1... e5 {[%clk 0:02:59.3]} 2. Nf3 {[%clk 0:03:00.3]}
2... Nc6 {[%clk 0:02:59.2]} 3. d4 {[%clk 0:03:00.1]} 3... exd4 {[%clk
0:02:58.7]} 4. Bc4 {[%clk 0:03:00.7]} 4... Nf6 {[%clk 0:02:52.4]} 5. e5 {[%clk
0:03:00.5]} 5... d5 {[%clk 0:02:52.2]} 6. Bb5 {[%clk 0:03:00.5]} 6... Ne4 {[%clk
0:02:50.5]} 7. Nxd4 {[%clk 0:03:00.4]} 7... Bc5 {[%clk 0:02:49.2]} 8. O-O {[%clk
0:02:53.9]} 8... O-O {[%clk 0:02:29.8]} 9. Bxc6 {[%clk 0:02:40.6]} 9... bxc6
{[%clk 0:02:28.1]} 10. Be3 {[%clk 0:02:41.2]} 10... Bxd4 {[%clk 0:02:27.6]} 11.
Bxd4 {[%clk 0:02:40.4]} 11... c5 {[%clk 0:02:27.8]} 12. Be3 {[%clk 0:02:39.8]}
12... d4 {[%clk 0:02:24]} 13. Bf4 {[%clk 0:02:30.8]} 13... f6 {[%clk 0:01:28.9]}
14. Nd2 {[%clk 0:02:25]} 14... fxe5 {[%clk 0:01:26.2]} 15. Nxe4 {[%clk
0:02:00.4]} 15... exf4 {[%clk 0:01:00.2]} 16. f3 {[%clk 0:01:57.4]} 16... Qd5
{[%clk 0:00:49.6]} 17. c4 {[%clk 0:01:49.4]} 17... Qe5 {[%clk 0:00:09.2]} 18.
Re1 {[%clk 0:01:37.8]} 18... a5 {[%clk 0:00:07.6]} 19. Qa4 {[%clk 0:01:33.5]}
19... Bf5 {[%clk 0:00:01.5]} 20. Nf2 {[%clk 0:01:20]} 20... Qd6 {[%clk
0:00:01.8]} 21. Rad1 {[%clk 0:01:00.8]} 21... Bd7 {[%clk 0:00:02]} 22. Qc2
{[%clk 0:00:59.6]} 22... h6 {[%clk 0:00:02.3]} 23. Ne4 {[%clk 0:00:57]} 23...
Qb6 {[%clk 0:00:02.8]} 24. Qb3 {[%clk 0:00:38.7]} 24... Rab8 {[%clk 0:00:02.5]}
25. Qa3 {[%clk 0:00:33.3]} 25... Rf5 {[%clk 0:00:03.1]} 26. b3 {[%clk
0:00:28.1]} 26... Qb4 {[%clk 0:00:03.5]} 27. Qc1 {[%clk 0:00:27.2]} 27... a4
{[%clk 0:00:03.4]} 28. Rd3 {[%clk 0:00:25.7]} 28... a3 {[%clk 0:00:03.2]} 29.
Qd2 {[%clk 0:00:16.3]} 29... Re8 {[%clk 0:00:02.6]} 30. Qxb4 {[%clk 0:00:15]}
30... cxb4 {[%clk 0:00:03.5]} 31. Rxd4 {[%clk 0:00:15.4]} 31... Bc6 {[%clk
0:00:04.3]} 32. Kf2 {[%clk 0:00:12.3]} 32... Rfe5 {[%clk 0:00:04.3]} 33. Re2
{[%clk 0:00:11]} 33... Kf7 {[%clk 0:00:04]} 34. Rdd2 {[%clk 0:00:10.9]} 34...
Bxe4 {[%clk 0:00:03.3]} 35. fxe4 {[%clk 0:00:11.8]} 35... Rxe4 {[%clk
0:00:04.2]} 36. Rxe4 {[%clk 0:00:12.2]} 36... Rxe4 {[%clk 0:00:05.1]} 37. Rd7+
{[%clk 0:00:12.5]} 37... Re7 {[%clk 0:00:05.8]} 38. Rd4 {[%clk 0:00:13.1]} 38...
g5 {[%clk 0:00:05.5]} 39. g3 {[%clk 0:00:13]} 39... fxg3+ {[%clk 0:00:05.6]} 40.
hxg3 {[%clk 0:00:13.9]} 40... Ke6 {[%clk 0:00:03]} 41. Rd5 {[%clk 0:00:14.3]}
41... Rf7+ {[%clk 0:00:02.9]} 42. Ke3 {[%clk 0:00:14.2]} 42... c6 {[%clk
0:00:02.7]} 43. Ra5 {[%clk 0:00:13.6]} 43... Rf1 {[%clk 0:00:02.1]} 44. Ra6
{[%clk 0:00:13.2]} 44... Kd6 {[%clk 0:00:02.2]} 45. Rb6 {[%clk 0:00:12.2]} 45...
Kc5 {[%clk 0:00:02]} 46. Rb7 {[%clk 0:00:12.7]} 46... Ra1 {[%clk 0:00:02.6]} 47.
Rh7 {[%clk 0:00:13.1]} 47... Rxa2 {[%clk 0:00:03.2]} 48. Rxh6 {[%clk 0:00:13.8]}
48... Rb2 {[%clk 0:00:03.9]} 49. Rg6 {[%clk 0:00:14.3]} 49... Rxb3+ {[%clk
0:00:04.7]} 50. Kd2 {[%clk 0:00:14.9]} 50... Rxg3 {[%clk 0:00:04.3]} 51. Rf6
{[%clk 0:00:15.5]} 51... b3 {[%clk 0:00:03.6]} 52. Rf5+ {[%clk 0:00:15]} 52...
Kb4 {[%clk 0:00:03.9]} 53. c5 {[%clk 0:00:14.9]} 53... a2 {[%clk 0:00:04.2]} 54.
Ke2 {[%clk 0:00:14.7]} 54... a1=Q {[%clk 0:00:04.4]} 55. Kf2 {[%clk 0:00:15.3]}
55... Qc3 {[%clk 0:00:05]} 56. Rf4+ {[%clk 0:00:14.5]} 56... gxf4 {[%clk
0:00:05.9]} 57. Kf1 {[%clk 0:00:14.6]} 57... Rd3 {[%clk 0:00:06]} 58. Kf2 {[%clk
0:00:15.5]} 58... Rd2+ {[%clk 0:00:06.3]} 59. Kg1 {[%clk 0:00:16.1]} 59... Qc2
{[%clk 0:00:07.1]} 0-1

[Event "Late-Titled-Tuesday-Blitz-November-28-2023"]
[Site "Chess.com"]
[Date "2023.11.28"]
[Round "8"]
[White "MeesvanOsch"]
[Black "reevecanada"]
[Result "1-0"]
[WhiteElo "2428"]
[BlackElo "2612"]
[TimeControl "180+1"]
[EndTime "15:25:46 PST"]
[Termination "MeesvanOsch won by checkmate"]

1. e4 {[%clk 0:03:00.9]} 1... e6 {[%clk 0:02:52.6]} 2. d4 {[%clk 0:03:00.1]}
2... d5 {[%clk 0:02:52.2]} 3. Nc3 {[%clk 0:03:00.7]} 3... c6 {[%clk 0:02:50.5]}
4. Be3 {[%clk 0:02:58.1]} 4... Qb6 {[%clk 0:02:49.2]} 5. Qd2 {[%clk 0:02:56]}
5... Nf6 {[%clk 0:02:48.1]} 6. e5 {[%clk 0:02:54.9]} 6... Nfd7 {[%clk
0:02:47.9]} 7. O-O-O {[%clk 0:02:53.4]} 7... c5 {[%clk 0:02:47.3]} 8. Na4 {[%clk
0:02:52.9]} 8... Qc6 {[%clk 0:02:46.9]} 9. Nxc5 {[%clk 0:02:48.2]} 9... Nxc5
{[%clk 0:02:45.8]} 10. dxc5 {[%clk 0:02:49.1]} 10... Bxc5 {[%clk 0:02:44.9]} 11.
Nf3 {[%clk 0:02:45.5]} 11... Nd7 {[%clk 0:02:40.4]} 12. Nd4 {[%clk 0:02:44.8]}
12... Bxd4 {[%clk 0:02:40]} 13. Bxd4 {[%clk 0:02:41.5]} 13... b5 {[%clk
0:02:39.4]} 14. Qg5 {[%clk 0:02:25.5]} 14... O-O {[%clk 0:02:27.7]} 15. Rd3
{[%clk 0:02:24.9]} 15... h6 {[%clk 0:02:13.2]} 16. Qg4 {[%clk 0:02:00.4]} 16...
f5 {[%clk 0:02:05.7]} 17. Qg6 {[%clk 0:01:57.2]} 17... Rf7 {[%clk 0:02:02.6]}
18. Rc3 {[%clk 0:01:49.6]} 18... Qa6 {[%clk 0:01:59.5]} 19. Kb1 {[%clk 0:01:46]}
19... Nf8 {[%clk 0:01:58.5]} 20. Qh5 {[%clk 0:01:40.3]} 20... Qa4 {[%clk
0:01:57]} 21. Bc5 {[%clk 0:01:17.8]} 21... Qg4 {[%clk 0:01:33.7]} 22. Qxg4
{[%clk 0:01:16.5]} 22... fxg4 {[%clk 0:01:33]} 23. Bxb5 {[%clk 0:01:17.4]} 23...
Bb7 {[%clk 0:01:29.4]} 24. Rb3 {[%clk 0:01:04.2]} 24... Ng6 {[%clk 0:01:27]} 25.
Bd4 {[%clk 0:01:02.3]} 25... Nh4 {[%clk 0:01:24.5]} 26. Bd3 {[%clk 0:00:42.2]}
26... Nxg2 {[%clk 0:01:07.6]} 27. Rg1 {[%clk 0:00:39.1]} 27... Nf4 {[%clk
0:01:07.4]} 28. Rxg4 {[%clk 0:00:35.5]} 28... Nxd3 {[%clk 0:01:07.1]} 29. cxd3
{[%clk 0:00:32.5]} 29... Ba6 {[%clk 0:01:04.2]} 30. Kc2 {[%clk 0:00:27.9]} 30...
Raf8 {[%clk 0:01:01.2]} 31. Rc3 {[%clk 0:00:23.3]} 31... Bb5 {[%clk 0:00:56.3]}
32. Bc5 {[%clk 0:00:18.5]} 32... Rc8 {[%clk 0:00:54.4]} 33. a4 {[%clk
0:00:18.5]} 33... Rfc7 {[%clk 0:00:50]} 34. axb5 {[%clk 0:00:16.9]} 34... Rxc5
{[%clk 0:00:49.7]} 35. Ra4 {[%clk 0:00:15.9]} 35... R8c7 {[%clk 0:00:35.5]} 36.
d4 {[%clk 0:00:16]} 36... Rxc3+ {[%clk 0:00:34.5]} 37. bxc3 {[%clk 0:00:16.9]}
37... Rb7 {[%clk 0:00:31.6]} 38. c4 {[%clk 0:00:12.8]} 38... dxc4 {[%clk
0:00:29.5]} 39. Ra5 {[%clk 0:00:13.2]} 39... Rf7 {[%clk 0:00:23.2]} 40. Kc3
{[%clk 0:00:13.5]} 40... Rxf2 {[%clk 0:00:22.2]} 41. Rxa7 {[%clk 0:00:13.9]}
41... Rxh2 {[%clk 0:00:20.9]} 42. b6 {[%clk 0:00:13.7]} 42... Rh3+ {[%clk
0:00:17.1]} 43. Kxc4 {[%clk 0:00:13.8]} 43... Rh1 {[%clk 0:00:17.2]} 44. b7
{[%clk 0:00:10.9]} 44... Rc1+ {[%clk 0:00:16.9]} 45. Kd3 {[%clk 0:00:10.3]}
45... Rb1 {[%clk 0:00:17.6]} 46. Ra8+ {[%clk 0:00:10.2]} 46... Kh7 {[%clk
0:00:18.2]} 47. b8=Q {[%clk 0:00:10.7]} 47... Rxb8 {[%clk 0:00:18.5]} 48. Rxb8
{[%clk 0:00:11.6]} 48... h5 {[%clk 0:00:18.8]} 49. Rf8 {[%clk 0:00:11.7]} 49...
h4 {[%clk 0:00:18.9]} 50. d5 {[%clk 0:00:12.3]} 50... exd5 {[%clk 0:00:18.3]}
51. e6 {[%clk 0:00:12.6]} 51... h3 {[%clk 0:00:19.2]} 52. Rf3 {[%clk 0:00:12.2]}
52... h2 {[%clk 0:00:20.1]} 53. Rh3+ {[%clk 0:00:12.6]} 53... Kg6 {[%clk
0:00:19.4]} 54. Rxh2 {[%clk 0:00:13.5]} 54... Kf6 {[%clk 0:00:20.2]} 55. Re2
{[%clk 0:00:13.5]} 55... Ke7 {[%clk 0:00:20.7]} 56. Kd4 {[%clk 0:00:14.4]} 56...
g5 {[%clk 0:00:21]} 57. Kxd5 {[%clk 0:00:15.3]} 57... g4 {[%clk 0:00:21.1]} 58.
Ke5 {[%clk 0:00:15.9]} 58... g3 {[%clk 0:00:22]} 59. Rg2 {[%clk 0:00:16.6]}
59... Ke8 {[%clk 0:00:21.5]} 60. Rxg3 {[%clk 0:00:17.5]} 60... Ke7 {[%clk
0:00:21.5]} 61. Ra3 {[%clk 0:00:18.2]} 61... Kf8 {[%clk 0:00:21.8]} 62. Ra7
{[%clk 0:00:19.1]} 62... Ke8 {[%clk 0:00:22.6]} 63. Kf6 {[%clk 0:00:19.7]} 63...
Kd8 {[%clk 0:00:22.8]} 64. Rh7 {[%clk 0:00:19.5]} 64... Kc8 {[%clk 0:00:23.7]}
65. Rg7 {[%clk 0:00:20]} 65... Kd8 {[%clk 0:00:24.3]} 66. Rf7 {[%clk 0:00:19.8]}
66... Ke8 {[%clk 0:00:25.2]} 67. Ke5 {[%clk 0:00:19.8]} 67... Kd8 {[%clk
0:00:25.7]} 68. Kd6 {[%clk 0:00:20.5]} 68... Ke8 {[%clk 0:00:26.3]} 69. Rf5
{[%clk 0:00:20.9]} 69... Kd8 {[%clk 0:00:26.2]} 70. Rf8# {[%clk 0:00:21.8]} 1-0